bitfinex-derivatives/quotes_ETHF0:USTF0_20250112
["timestamp","ask_amount","ask_price","bid_price","bid_amount"]
[1736646486800,0.213,3287.8,3287.6,0.474]
[1736646487210,0.213,3287.8,3287.6,0.68701]
[1736646487710,0.21301,3287.6,3287.5,0.4529]
[1736646487910,3.2078,3287.6,3287.1,0.4484]
[1736646488113,0.21303,3287.4,3287.1,0.4484]
[1736646488324,0.21303,3287.4,3287.3,0.21303]
[1736646488808,0.6043,3287.5,3287.1,0.4484]
[1736646489209,0.21303,3287.3,3287.2,0.21303]
[1736646489611,0.21303,3287.3,3287.1,0.4484]
[1736646489612,3.2078,3287.6,3287.1,0.4484]
[1736646490108,0.21302,3287.5,3287.4,0.21302]
[1736646490911,3.2078,3287.6,3287.1,0.4484]
[1736646491111,0.21303,3287.4,3287.2,0.21303]
[1736646491617,0.21303,3287.3,3287.2,0.21303]
[1736646491812,0.4143,3287.5,3287.1,0.66144]
[1736646492018,0.6042,3287.5,3287.1,0.66144]
[1736646492219,0.21303,3287.3,3287.1,0.66144]
[1736646492518,0.21303,3287.3,3287.1,0.4484]
[1736646492719,0.21303,3287.3,3287.2,0.21303]
[1736646492920,0.21302,3287.4,3287.2,0.21303]
[1736646493822,0.21303,3287.4,3287.2,0.21303]
[1736646494117,11.5952832,3287.6,3287.2,0.21303]
[1736646494118,0.21303,3287.3,3287.2,0.21303]
[1736646494318,0.21303,3287.3,3287.1,0.4484]
[1736646494518,0.21303,3287.3,3287.2,0.21303]
[1736646494707,11.5952832,3287.6,3287.2,0.21303]
[1736646494913,0.21303,3287.4,3287.2,0.21303]
[1736646495116,0.21303,3287.4,3287.3,0.21303]
[1736646495311,0.21302,3287.5,3287.4,0.21302]
[1736646495517,11.5952832,3287.6,3287.3,0.21302]
[1736646495721,0.21302,3287.4,3287.2,0.21303]
[1736646496524,0.21302,3287.5,3287.3,0.21303]
[1736646496714,0.21302,3287.5,3287.3,0.21302]
[1736646496915,0.21302,3287.5,3287.4,0.4668]
[1736646500223,0.21302,3287.5,3287.4,0.67982]
[1736646500817,3.2078,3287.6,3287.4,0.67982]
[1736646501019,3.42081,3287.6,3287.5,0.4428]
[1736646501428,4.42132739,3287.6,3287.5,0.4428]
[1736646502128,0.21303,3287.3,3287.2,0.4754]
[1736646502320,1.00051739,3287.3,3287.1,0.4484]
[1736646502521,0.21303,3287.2,3287.1,0.66144]
[1736646502730,0.21303,3287.2,3287.1,0.4484]
[1736646503827,1.00051739,3287.3,3286.9,0.4567]
[1736646504030,0.21305,3287.0,3286.9,0.4567]
[1736646504229,0.21305,3287.0,3286.9,0.66975]
[1736646505120,0.21305,3287.0,3286.9,0.4567]
[1736646505326,0.21305,3287.0,3286.9,0.66975]
[1736646505520,0.21305,3287.0,3286.9,0.4567]
[1736646505838,0.21305,3287.0,3286.9,0.66975]
[1736646506630,0.21305,3287.0,3286.9,0.4567]
[1736646508331,0.21305,3287.0,3286.9,0.66975]
[1736646508929,0.21305,3287.0,3286.9,0.4567]
[1736646513930,0.21305,3287.0,3286.9,0.66975]
[1736646514243,0.21305,3287.0,3286.9,0.4567]
[1736646517131,3.42085,3287.0,3286.9,0.4567]
[1736646518438,3.42085,3287.0,3286.9,0.66975]
[1736646518738,3.42085,3287.0,3286.9,0.4567]
[1736646524044,5.41031739,3287.0,3285.9,5.78700193]
[1736646524245,1.00051739,3286.5,3286.3,0.4706]
[1736646524548,0.21309,3286.4,3286.3,0.68369]
[1736646525243,0.21311,3286.0,3285.9,4.78648454]
[1736646525449,1.00051739,3286.0,3285.9,0.9056]
[1736646525642,0.21311,3286.1,3285.9,0.9056]
[1736646525943,0.21311,3286.1,3285.9,1.11871]
[1736646526541,0.21311,3286.0,3285.9,0.9056]
[1736646526850,0.21311,3286.1,3285.9,1.11872]
[1736646527147,3.2078,3286.2,3285.9,0.9056]
[1736646527344,3.2078,3286.2,3286.1,0.21311]
[1736646528135,3.4209,3286.2,3286.0,0.21311]
[1736646528345,3.4209,3286.2,3285.9,0.9056]
[1736646528543,3.4209,3286.2,3286.1,0.21311]
[1736646528743,3.4209,3286.2,3286.0,0.21311]
[1736646528942,3.4209,3286.2,3285.9,0.9056]
[1736646529143,3.4209,3286.2,3286.1,0.21311]
[1736646529549,3.2078,3286.2,3285.9,1.11872]
[1736646529750,1.00051739,3286.0,3285.9,1.11872]
[1736646529947,1.21362739,3286.0,3285.9,0.9056]
[1736646534154,0.21311,3286.0,3285.9,1.11872]
[1736646534354,0.21311,3286.0,3285.9,0.9056]
[1736646535054,3.42091,3286.0,3285.9,0.9056]
[1736646535254,3.42091,3286.0,3285.9,1.11872]
[1736646535451,3.42091,3286.0,3285.9,0.9056]
[1736646535655,4.42142739,3286.0,3285.9,0.9056]
[1736646539159,4.42142739,3286.0,3285.9,0.435]
[1736646541759,4.42142739,3286.0,3285.9,0.894]
[1736646547673,4.20831739,3286.0,3285.8,0.4483]
[1736646547866,0.21314,3285.6,3285.5,0.9423]
[1736646548170,1.21365739,3285.6,3285.5,0.9423]
[1736646548669,1.21365739,3285.6,3285.5,1.15545]
[1736646551570,1.21365739,3285.6,3285.5,0.9423]
[1736646552772,1.21365739,3285.6,3285.5,1.15545]
[1736646554276,1.21365739,3285.6,3285.5,0.9423]
[1736646559376,1.21365739,3285.6,3285.5,1.15545]
[1736646559570,1.21365739,3285.6,3285.5,0.9423]
[1736646559771,1.21365739,3285.6,3285.5,1.15545]
[1736646562076,1.21365739,3285.6,3285.5,0.9423]
[1736646562278,1.21365739,3285.6,3285.5,1.15545]
[1736646562871,0.21314,3285.6,3285.5,1.15545]
[1736646564473,3.2078,3285.7,3285.5,0.9423]
[1736646564781,3.2078,3286.1,3286.0,0.21311]
[1736646565374,1.21361739,3286.3,3285.9,0.4659]
[1736646565575,1.21361739,3286.3,3286.2,0.2131]
[1736646566179,1.00051739,3286.3,3286.2,0.2131]
[1736646566778,0.2131,3286.2,3286.1,0.2131]
[1736646567483,0.21311,3286.1,3286.0,0.4561]
[1736646567685,1.00051739,3286.1,3286.0,0.4561]
[1736646567880,1.21362739,3286.1,3286.0,0.66921]
[1736646568075,1.21362739,3286.1,3286.0,1.12601]
[1736646568381,3.2078,3286.3,3286.0,0.9129]
[1736646568585,0.2131,3286.3,3286.2,0.2131]
[1736646568779,1.21361739,3286.3,3286.2,0.2131]
[1736646568974,1.21361739,3286.3,3286.1,0.2131]
[1736646570083,0.2131,3286.2,3286.1,0.2131]
[1736646570981,1.21361739,3286.3,3286.2,0.2131]
[1736646571377,0.2131,3286.2,3286.1,0.2131]
[1736646571574,1.21361739,3286.3,3286.1,0.2131]
[1736646572381,1.00051739,3286.3,3286.1,0.2131]
[1736646572581,0.2131,3286.2,3286.1,0.2131]
[1736646573184,1.21361739,3286.3,3286.1,0.2131]
[1736646573478,1.21361739,3286.3,3286.0,0.9129]
[1736646573479,0.2131,3286.3,3286.0,1.91341739]
[1736646573788,0.2131,3286.3,3286.1,0.2131]
[1736646574575,0.2131,3286.2,3286.1,0.2131]
[1736646575083,0.2131,3286.2,3286.0,1.12601]
[1736646575275,0.2131,3286.2,3286.1,0.21311]
[1736646575475,0.2131,3286.2,3286.0,0.9129]
[1736646575675,0.2131,3286.2,3286.0,1.12601]
[1736646577282,0.2131,3286.2,3286.0,0.9129]
[1736646577484,0.2131,3286.2,3286.1,0.21311]
[1736646578584,1.00051739,3286.3,3286.0,0.9129]
[1736646578788,0.2131,3286.2,3286.0,1.12601]
[1736646579485,0.2131,3286.2,3286.1,0.21311]
[1736646585387,4.20831739,3286.5,3286.0,0.9129]
[1736646585588,8.37322804,3286.9,3286.4,1.00051739]
[1736646585795,0.21306,3286.8,3286.7,0.21306]
[1736646586596,0.21307,3286.7,3286.6,0.21307]
[1736646586884,0.21307,3286.7,3286.5,0.9097]
[1736646586885,0.21307,3286.6,3286.5,0.9097]
[1736646587092,0.64927,3286.6,3286.5,0.4353]
[1736646587286,3.85707,3286.6,3286.5,0.4353]
[1736646587485,0.21309,3286.4,3286.3,0.21309]
[1736646587689,1.21360739,3286.4,3286.3,0.21309]
[1736646588198,1.00051739,3286.4,3286.3,0.21309]
[1736646589095,4.64451739,3286.6,3286.4,0.21309]
[1736646589296,3.85708,3286.6,3286.4,0.21309]
[1736646589495,0.64928,3286.6,3286.4,0.21309]
[1736646590188,0.21308,3286.5,3286.4,0.21308]
[1736646590384,0.4362,3286.6,3286.4,0.21308]
[1736646590591,0.21308,3286.5,3286.4,0.21308]
[1736646591296,3.85708,3286.6,3286.4,0.21308]
[1736646591498,0.21308,3286.5,3286.4,0.21308]
[1736646592597,3.644,3286.6,3286.2,0.9136]
[1736646592799,0.21309,3286.3,3286.2,1.1267]
[1736646593700,3.644,3286.6,3286.2,0.9136]
[1736646593896,3.644,3286.6,3286.2,1.1267]
[1736646594096,0.21309,3286.3,3286.2,1.1267]
[1736646594696,0.21309,3286.3,3286.2,0.9136]
[1736646594903,0.21309,3286.3,3286.2,1.1267]
[1736646595098,0.21309,3286.3,3286.2,0.9136]
[1736646595298,3.644,3286.6,3286.1,0.46]
[1736646595299,0.2131,3286.2,3286.1,0.46]
[1736646595504,0.6797,3286.2,3286.1,0.46]
[1736646597205,0.6797,3286.2,3285.8,0.477]
[1736646597206,0.4666,3286.2,3285.8,0.477]
[1736646597398,2.11475309,3286.1,3285.6,0.21314]
[1736646597704,0.21313,3285.8,3285.7,3.42093]
[1736646598007,0.21312,3285.9,3285.8,0.21313]
[1736646598200,0.21312,3285.9,3285.8,1.08483]
[1736646598905,0.21312,3285.9,3285.8,0.4333]
[1736646599107,0.21312,3285.9,3285.7,3.2078]
[1736646599108,0.21314,3285.7,3285.5,0.21314]
[1736646599999,0.21314,3285.7,3285.4,0.4622]
[1736646600205,3.2078,3286.0,3285.4,0.4622]
[1736646600405,0.21312,3285.9,3285.8,0.21313]
[1736646601701,0.21312,3285.9,3285.5,0.21314]
[1736646601902,0.21314,3285.6,3285.5,0.21315]
[1736646602308,0.21314,3285.7,3285.5,0.21315]
[1736646602705,0.21314,3285.6,3285.5,0.21315]
[1736646603304,0.4571,3285.8,3285.4,0.4622]
[1736646603604,0.21315,3285.5,3285.4,0.67535]
[1736646603806,0.21315,3285.5,3285.4,0.4622]
[1736646604708,0.21315,3285.4,3285.3,0.4333]
[1736646607519,2.11475309,3285.5,3285.1,3.2078]
[1736646607715,0.21317,3285.2,3285.1,3.2078]
[1736646609820,0.4487,3285.3,3284.9,0.9395]
[1736646610022,0.21318,3285.0,3284.9,0.9395]
[1736646612025,0.21317,3285.1,3285.0,0.21318]
[1736646612319,5.32255309,3285.5,3285.0,0.21318]
[1736646612513,0.21317,3285.1,3285.0,0.21318]
[1736646613018,0.21318,3285.0,3284.9,1.15268]
[1736646613522,0.21318,3285.1,3284.9,1.15268]
[1736646613723,0.21318,3285.1,3285.0,0.457]
[1736646616615,0.21318,3285.0,3284.9,0.9395]
[1736646616916,0.66418,3285.0,3284.9,0.4646]
[1736646617221,0.21318,3285.0,3284.9,0.4646]
[1736646618619,3.42098,3285.0,3284.9,0.4646]
[1736646619922,3.2078,3285.0,3284.9,0.67778]
[1736646622126,4.61895,3285.4,3285.3,0.21316]
[1736646622330,4.4058,3285.4,3284.9,0.4646]
[1736646622532,0.21316,3285.3,3285.2,0.21316]
[1736646622720,4.4058,3285.4,3284.8,0.4434]
[1736646623026,0.21317,3285.1,3285.0,0.21318]
[1736646623229,2.55695309,3285.2,3284.8,0.4434]
[1736646623525,0.21318,3284.9,3284.8,0.4434]
[1736646624120,2.32793309,3284.9,3284.8,0.4434]
[1736646624324,0.21319,3284.8,3284.7,0.4501]
[1736646624525,0.65559,3284.8,3284.7,0.4501]
[1736646627329,0.4424,3284.8,3284.5,0.66661]
[1736646627524,0.2132,3284.6,3284.5,1.12581]
[1736646629329,0.21322,3284.4,3284.3,3.42102]
[1736646629526,0.21321,3284.6,3284.5,0.21321]
[1736646629724,3.2078,3285.0,3284.3,3.2078]
[1736646630219,0.21317,3285.2,3284.5,0.53302]
[1736646630420,0.21317,3285.2,3284.7,0.2132]
[1736646630623,0.21317,3285.2,3285.1,0.21317]
[1736646632527,3.2078,3285.4,3284.8,0.4489]
[1736646632728,3.2078,3285.4,3285.0,0.21317]
[1736646632932,0.21317,3285.2,3285.1,0.4541]
[1736646637241,3.2078,3285.4,3285.0,0.4569]
[1736646637430,0.21317,3285.1,3285.0,0.4569]
[1736646643542,0.21317,3285.1,3285.0,0.9266]
[1736646645842,3.2078,3285.4,3285.0,0.9266]
[1736646646345,0.21316,3285.3,3285.1,0.21317]
[1736646646641,0.21317,3285.1,3285.0,1.13977]
[1736646646944,0.21317,3285.1,3285.0,0.9266]
[1736646647141,0.4602,3285.3,3284.8,0.4489]
[1736646647340,0.21318,3284.9,3284.8,0.4489]
[1736646647647,0.21318,3284.9,3284.8,0.893]
[1736646649944,0.21318,3284.9,3284.8,1.10619]
[1736646651746,0.21318,3284.9,3284.8,0.893]
[1736646652336,2.11475309,3285.1,3284.8,0.893]
[1736646652540,0.21317,3285.1,3285.0,0.21317]
[1736646653443,0.21317,3285.1,3284.9,0.21318]
[1736646653643,0.21317,3285.1,3285.0,0.471]
[1736646654548,0.21317,3285.1,3285.0,0.68418]
[1736646655149,0.21317,3285.1,3285.0,0.471]
[1736646655451,0.21318,3284.9,3284.8,1.10619]
[1736646656045,0.4601,3285.0,3284.8,0.893]
[1736646656253,0.21318,3285.0,3284.9,0.21318]
[1736646656548,0.21318,3285.1,3284.9,0.21318]
[1736646657142,0.21318,3285.1,3285.0,0.21318]
[1736646658346,11.58102804,3285.4,3284.8,0.893]
[1736646658648,11.58102804,3285.4,3285.3,0.21316]
[1736646659150,8.37322804,3285.4,3285.3,0.21316]
[1736646659539,8.37322804,3285.4,3285.3,1.11786]
[1736646659746,8.37322804,3285.4,3285.3,9.07786]
[1736646660251,8.58632804,3286.2,3286.1,0.21311]
[1736646660444,8.58632804,3286.2,3285.5,0.53286]
[1736646660445,8.58632804,3286.2,3285.9,3.2078]
[1736646660651,8.58632804,3286.2,3286.1,0.21311]
[1736646661156,0.2131,3286.2,3286.0,1.3818]
[1736646661451,0.21311,3286.1,3286.0,1.3818]
[1736646661651,0.2131,3286.2,3286.0,1.59491]
[1736646663553,0.21311,3286.1,3286.0,1.3818]
[1736646663754,2.32786309,3286.1,3286.0,0.9077]
[1736646670253,2.32786309,3286.1,3286.0,1.12081]
[1736646670948,0.21311,3286.1,3286.0,1.12081]
[1736646671454,0.21311,3286.2,3286.0,1.12081]
[1736646671853,0.21311,3286.1,3286.0,0.9077]
[1736646677251,0.21311,3286.1,3286.0,1.3705]
[1736646679654,0.21311,3286.1,3286.0,1.58361]
[1736646681260,1.21456207,3286.1,3286.0,1.58361]
[1736646683059,1.21456207,3286.1,3286.0,1.3705]
[1736646683666,1.00145207,3286.1,3286.0,1.58361]
[1736646685963,1.21456207,3286.1,3286.0,1.58361]
[1736646689365,1.00145207,3286.1,3286.0,1.58361]
[1736646690065,1.21456207,3286.1,3286.0,1.58361]
[1736646690466,1.21456207,3286.1,3286.0,1.3705]
[1736646690666,1.21456207,3286.1,3286.0,0.923]
[1736646690971,1.21456207,3286.1,3286.0,0.4602]
[1736646692567,1.21456207,3286.1,3286.0,0.67331]
[1736646699279,1.00145207,3286.1,3286.0,0.67331]
[1736646703176,9.37468011,3286.3,3286.0,0.4602]
[1736646703470,8.37322804,3286.3,3286.2,0.2131]
[1736646703675,9.56940348,3286.4,3286.3,0.21309]
[1736646704674,9.56940348,3286.4,3286.1,0.4608]
[1736646704876,1.21455207,3286.2,3286.1,0.4608]
[1736646705772,0.21311,3286.1,3286.0,0.9138]
[1736646707574,0.21311,3286.1,3286.0,1.12691]
[1736646710178,1.67356207,3286.2,3286.0,1.12691]
[1736646711676,0.21311,3286.1,3286.0,0.9138]
[1736646711980,0.21311,3286.1,3286.0,0.4602]
[1736646712675,1.00145207,3286.2,3286.1,0.21311]
[1736646714179,1.21455207,3286.2,3286.1,0.21311]
[1736646715379,0.2131,3286.2,3286.1,0.21311]
[1736646716083,0.2131,3286.3,3286.0,0.4602]
[1736646716277,1.00145207,3286.4,3286.0,0.4602]
[1736646716483,0.2131,3286.3,3286.0,0.4602]
[1736646716784,0.2131,3286.3,3286.1,0.2131]
[1736646717082,0.2131,3286.3,3286.2,0.4387]
[1736646717282,0.2131,3286.3,3286.2,0.8987]
[1736646718679,0.2131,3286.3,3286.2,0.46]
[1736646719281,0.21311,3286.1,3286.0,0.4602]
[1736646719480,1.21456207,3286.1,3286.0,0.4602]
[1736646721284,1.21456207,3286.1,3286.0,0.67331]
[1736646721681,1.21456207,3286.1,3286.0,0.4602]
[1736646724488,1.21456207,3286.1,3286.0,0.67331]
[1736646726283,11.73021863,3286.3,3286.0,0.67331]
[1736646726782,0.21311,3286.1,3286.0,0.67331]
[1736646729990,0.2131,3286.2,3286.1,0.2131]
[1736646732686,11.73021863,3286.3,3286.0,0.4602]
[1736646732891,0.21311,3286.1,3286.0,0.4602]
[1736646733393,1.21456207,3286.1,3286.0,0.4602]
[1736646734088,1.21456207,3286.1,3286.0,0.67331]
[1736646735592,1.21456207,3286.1,3286.0,0.4602]
[1736646739686,1.21456207,3286.1,3285.8,0.467]
[1736646739890,1.00145207,3285.9,3285.7,0.9173]
[1736646740090,0.21313,3285.8,3285.7,0.9173]
[1736646741590,0.21313,3285.8,3285.7,1.13043]
[1736646743692,1.00145207,3285.9,3285.7,0.9173]
[1736646743897,0.21312,3285.9,3285.8,0.21313]
[1736646745098,8.385117,3285.9,3285.7,0.9173]
[1736646745291,0.21313,3285.8,3285.7,1.13043]
[1736646747793,8.598237,3285.9,3285.8,0.21313]
[1736646749497,8.385117,3285.9,3285.7,0.9173]
[1736646749700,0.21313,3285.8,3285.7,1.13043]
[1736646752294,8.385117,3285.9,3285.7,0.9173]
[1736646752489,8.598237,3285.9,3285.7,1.13043]
[1736646752799,0.21313,3285.8,3285.7,1.13043]
[1736646757501,10.57085555,3286.1,3285.7,0.9173]
[1736646757696,0.21313,3285.8,3285.7,1.13043]
[1736646758102,1.00145207,3286.1,3285.7,0.9173]
[1736646758303,0.21312,3285.9,3285.8,0.21313]
[1736646758998,0.21312,3285.9,3285.7,1.13043]
[1736646759199,0.21311,3286.1,3285.9,0.21311]
[1736646759501,0.21311,3286.1,3286.0,0.4409]
[1736646761105,12.77720348,3286.2,3286.1,0.21311]
[1736646761308,12.77720348,3286.2,3286.1,1.21456207]
[1736646761805,9.56940348,3286.2,3286.1,1.21456207]
[1736646762004,9.56940348,3286.2,3286.1,0.21311]
[1736646762397,0.21309,3286.4,3286.1,0.21311]
[1736646762398,8.38135258,3286.4,3286.1,1.00145207]
[1736646762602,8.38135258,3286.4,3286.3,1.21454207]
[1736646763108,8.38135258,3286.4,3286.3,1.69314207]
[1736646763407,8.59443258,3286.6,3286.3,1.48005207]
[1736646763605,8.59443258,3286.6,3286.4,0.21308]
[1736646763805,8.59443258,3286.6,3286.4,0.68678]
[1736646767114,8.38135258,3286.6,3286.4,0.4737]
[1736646767317,8.38135258,3286.6,3286.5,0.21308]
[1736646768210,3.42087,3286.7,3286.5,0.21308]
[1736646770710,0.21308,3286.6,3286.5,0.21308]
[1736646770910,0.21308,3286.6,3286.4,0.68678]
[1736646773419,1.00145207,3286.7,3286.4,0.4737]
[1736646773717,0.21308,3286.5,3286.4,0.4737]
[1736646774716,8.59443258,3286.5,3286.4,0.4737]
[1736646775219,8.59443258,3286.5,3286.4,0.68679]
[1736646775513,8.59443258,3286.5,3286.4,0.4737]
[1736646776016,0.21308,3286.5,3286.4,0.4737]
[1736646778310,8.59443258,3286.6,3286.4,0.68678]
[1736646779115,0.21308,3286.5,3286.4,0.68678]
[1736646779518,0.21308,3286.5,3286.4,0.4737]
[1736646781315,0.66528,3286.5,3286.4,0.4737]
[1736646785421,0.66528,3286.5,3286.3,0.4786]
[1736646785422,0.21309,3286.4,3286.3,0.4786]
[1736646786223,0.21309,3286.3,3286.2,0.8948]
[1736646787017,0.21309,3286.3,3286.2,0.453]
[1736646787415,0.21309,3286.3,3286.2,0.6661]
[1736646790620,0.21309,3286.3,3286.2,0.453]
[1736646790822,0.21309,3286.3,3286.2,0.6661]
[1736646793830,0.21309,3286.3,3286.2,0.453]
[1736646794032,0.21309,3286.3,3286.2,0.6661]
[1736646798634,0.4522,3286.5,3286.2,0.453]
[1736646798939,0.21307,3286.7,3286.6,0.21307]
[1736646799631,4.42232207,3286.8,3286.7,0.21307]
[1736646800237,3.2078,3286.8,3286.7,0.21307]
[1736646800438,10.72876656,3286.9,3286.8,0.21306]
[1736646800639,10.94181656,3286.9,3286.8,0.21306]
[1736646800844,10.72876656,3286.9,3286.8,0.21306]
[1736646801340,10.72876656,3286.9,3286.8,1.09056]
[1736646802130,1.00145207,3287.0,3286.8,0.8775]
[1736646802331,1.21450207,3287.0,3286.8,1.09056]
[1736646802927,1.21450207,3287.0,3286.8,0.8775]
[1736646803250,1.00145207,3287.0,3286.9,0.21305]
[1736646804442,1.21450207,3287.0,3286.8,1.09056]
[1736646805337,1.21450207,3287.0,3286.9,0.21305]
[1736646806137,1.21450207,3287.0,3286.8,1.09056]
[1736646806743,1.21450207,3287.0,3286.9,0.21305]
[1736646807342,1.21450207,3287.0,3286.8,1.09056]
[1736646807840,0.4354,3286.9,3286.8,1.09056]
[1736646808235,0.64845,3286.9,3286.8,0.8775]
[1736646809334,0.21307,3286.7,3286.6,0.21307]
[1736646809530,0.21307,3286.7,3286.5,0.64898]
[1736646809734,0.21307,3286.7,3286.5,0.4359]
[1736646809934,1.00145207,3286.8,3286.6,0.21307]
[1736646810138,1.21451207,3286.8,3286.5,0.4359]
[1736646810341,1.21451207,3286.8,3286.7,0.21307]
[1736646810642,0.21306,3286.8,3286.6,0.21307]
[1736646812138,9.78246348,3286.8,3286.6,0.21307]
[1736646812344,9.56940348,3286.8,3286.6,1.00145207]
[1736646812546,9.56940348,3286.8,3286.7,0.21307]
[1736646814443,8.38012565,3286.9,3286.8,0.21306]
[1736646814644,8.38012565,3286.9,3286.8,1.21451207]
[1736646815850,8.38012565,3287.0,3286.9,0.21305]
[1736646818043,8.38012565,3287.1,3286.8,1.00145207]
[1736646818244,8.38012565,3287.1,3287.0,0.21305]
[1736646820746,8.38012565,3287.1,3287.0,1.21450207]
[1736646822050,10.94179656,3287.3,3287.0,1.00145207]
[1736646822247,10.72876656,3287.3,3287.1,0.4553]
[1736646822447,0.21303,3287.2,3287.1,0.66834]
[1736646822947,10.94179656,3287.3,3287.1,0.66834]
[1736646823349,10.72876656,3287.3,3287.1,0.4553]
[1736646823551,10.72876656,3287.3,3287.2,1.21448207]
[1736646824952,12.86475332,3287.7,3287.1,3.2078]
[1736646825154,0.21303,3287.3,3286.9,1.00145207]
[1736646825354,0.21303,3287.3,3287.2,0.21303]
[1736646826053,0.9467,3287.4,3287.2,0.21303]
[1736646826253,1.15973,3287.4,3287.2,0.21303]
[1736646826452,0.476,3287.4,3287.3,0.21303]
[1736646826646,0.68902,3287.4,3287.3,0.21303]
[1736646827248,0.21302,3287.4,3287.3,0.21303]
[1736646828760,0.21302,3287.5,3287.3,0.21303]
[1736646830958,13.81145332,3287.7,3287.2,0.4612]
[1736646831159,12.07631125,3287.7,3287.6,0.21301]
[1736646831859,11.86330125,3287.7,3287.6,0.21301]
[1736646832357,0.213,3287.7,3287.6,0.21301]
[1736646833356,0.70687385,3287.8,3287.7,0.213]
[1736646833556,0.49387385,3287.8,3287.7,0.213]
[1736646833961,0.49387385,3287.8,3287.7,1.21445207]
[1736646834159,8.8739995,3287.8,3287.7,1.21445207]
[1736646836349,0.49387385,3287.8,3287.7,1.21445207]
[1736646836552,0.49387385,3287.8,3287.5,4.64505207]
[1736646836757,0.70687385,3287.8,3287.6,0.213]
[1736646836956,0.93977385,3287.8,3287.7,0.213]
[1736646837156,0.93977385,3287.8,3287.5,4.64505207]
[1736646837357,0.93977385,3287.8,3287.7,0.213]
[1736646837961,0.93977385,3287.8,3287.5,4.64505207]
[1736646838162,0.21301,3287.6,3287.5,3.6436]
[1736646839467,0.213,3287.7,3287.6,0.21301]
[1736646839659,0.93977385,3287.8,3287.5,4.64505207]
[1736646839860,0.213,3287.7,3287.6,0.213]
[1736646842566,0.93977385,3287.8,3287.5,1.43725207]
[1736646842762,0.70687385,3287.8,3287.7,0.213]
[1736646843067,0.213,3287.8,3287.7,0.213]
[1736646845169,0.21299,3287.9,3287.8,0.21299]
[1736646845369,0.21299,3287.9,3287.5,1.43725207]
[1736646845673,0.213,3287.8,3287.7,0.213]
[1736646846170,0.21299,3287.9,3287.7,0.213]
[1736646846361,0.21299,3287.9,3287.8,0.213]
[1736646846760,13.68430348,3288.1,3287.7,0.213]
[1736646846961,0.21299,3287.9,3287.7,0.213]
[1736646847462,0.21299,3287.9,3287.5,1.43725207]
[1736646847463,13.89728348,3288.1,3287.9,0.21299]
[1736646847668,13.68430348,3288.1,3287.5,1.43725207]
[1736646847971,0.21299,3288.0,3287.9,0.21299]
[1736646849169,0.9071,3288.1,3287.9,0.21299]
[1736646849370,1.12008,3288.1,3287.9,0.21299]
[1736646850170,1.12008,3288.1,3288.0,0.21298]
[1736646851472,1.00145207,3288.2,3288.1,0.21298]
[1736646852473,1.21442207,3288.2,3288.1,0.21298]
[1736646853181,11.86330125,3288.4,3288.1,1.00145207]
[1736646853368,11.86330125,3288.4,3288.3,1.21441207]
[1736646854672,8.36021272,3288.6,3288.5,0.21295]
[1736646854873,8.36021272,3288.6,3288.5,1.21440207]
[1736646855373,8.36021272,3288.6,3288.5,1.64770207]
[1736646855575,8.36021272,3288.6,3288.4,3.6855]
[1736646855576,0.21294,3288.6,3288.4,3.6855]
[1736646855876,0.21295,3288.5,3288.4,0.4777]
[1736646857666,0.21293,3288.8,3288.5,0.21295]
[1736646857974,0.21294,3288.7,3288.6,0.21294]
[1736646858168,0.21294,3288.7,3288.4,3.6855]
[1736646858169,0.4323,3288.8,3288.4,0.4777]
[1736646858366,0.21295,3288.5,3288.4,0.4777]
[1736646859074,0.21295,3288.6,3288.4,0.69065]
[1736646859377,22.29677928,3288.9,3288.4,3.6855]
[1736646859569,22.29677928,3288.9,3288.8,0.21293]
[1736646860482,22.50969928,3288.9,3288.8,0.21293]
[1736646860778,22.29677928,3288.9,3288.8,0.21293]
[1736646861471,3.2078,3288.9,3288.8,0.21293]
[1736646861667,0.4433,3289.1,3288.7,0.4767]
[1736646861870,0.4433,3289.1,3289.0,0.21292]
[1736646862977,0.2129,3289.4,3289.2,0.21291]
[1736646863571,0.2129,3289.4,3289.1,0.4331]
[1736646863871,3.2078,3289.7,3289.2,0.4467]
[1736646864070,3.42068,3289.7,3289.6,0.21288]
[1736646864379,3.2078,3289.7,3289.6,0.21288]
[1736646864573,3.42067,3289.7,3289.6,0.21288]
[1736646864869,11.78088272,3289.7,3289.6,0.21288]
[1736646865271,11.78088272,3289.7,3289.4,0.21289]
[1736646865475,11.56801272,3289.7,3289.4,0.21289]
[1736646865675,0.2129,3289.4,3289.2,0.2129]
[1736646866172,0.4338,3289.3,3289.2,0.2129]
[1736646866571,0.4338,3289.3,3289.1,0.4331]
[1736646866572,11.56801272,3289.7,3289.3,0.21289]
[1736646866776,0.21289,3289.5,3289.3,0.21289]
[1736646868579,0.4338,3289.6,3289.1,0.4331]
[1736646868781,0.64668,3289.6,3289.4,0.21289]
[1736646869084,0.4338,3289.6,3289.1,0.4331]
[1736646869385,0.21289,3289.5,3289.3,0.2129]
[1736646870083,0.64668,3289.6,3289.4,0.21289]
[1736646870284,0.21289,3289.5,3289.3,0.2129]
[1736646871580,0.21289,3289.4,3289.2,0.2129]
[1736646871786,0.4338,3289.6,3289.2,0.2129]
[1736646872083,0.4338,3289.6,3289.3,0.2129]
[1736646872685,0.2129,3289.4,3289.2,0.2129]
[1736646872886,0.2129,3289.4,3289.1,0.4331]
[1736646873183,0.2129,3289.4,3289.3,0.2129]
[1736646874183,0.67819,3289.5,3289.3,0.2129]
[1736646874383,0.67819,3289.5,3289.4,0.21289]
[1736646875488,0.4653,3289.5,3289.4,0.21289]
[1736646875689,0.21289,3289.5,3289.4,0.21289]